bitfinex-derivatives/quotes_BTCF0:USTF0_20210108
["timestamp","ask_amount","ask_price","bid_price","bid_amount"]
[1610065886226,0.13632608,39215.0,39202.0,0.00033666]
[1610065886428,0.13632608,39203.0,39202.0,0.00033666]
[1610065886628,3.23944608,39203.0,39201.0,0.03129858]
[1610065886827,3.23944608,39203.0,39202.0,0.00033675]
[1610065887028,3.23944608,39203.0,39202.0,0.03165253]
[1610065887226,3.23944608,39203.0,39180.0,0.0316537]
[1610065887627,3.23944608,39203.0,39179.0,0.03165358]
[1610065887828,3.23944608,39203.0,39181.0,0.03165285]
[1610065888027,3.23944608,39203.0,39180.0,0.03165269]
[1610065888428,4.40192608,39181.0,39179.0,0.03165287]
[1610065888630,4.40192608,39181.0,39169.0,0.13632608]
[1610065888830,4.40192608,39181.0,39180.0,0.03165459]
[1610065889228,4.40192608,39181.0,39170.0,0.03165639]
[1610065889429,4.40192608,39181.0,39180.0,0.031658]
[1610065889629,4.40192608,39181.0,39171.0,0.03165797]
[1610065890034,4.40192608,39181.0,39161.0,0.0316585]
[1610065890230,0.13632608,39181.0,39148.0,0.15658898]
[1610065890430,2.9241,39163.0,39162.0,0.0316627]
[1610065890832,2.9241,39163.0,39154.0,0.03166431]
[1610065891033,2.9241,39163.0,39154.0,0.03166437]
[1610065891236,2.9241,39163.0,39153.0,0.13632608]
[1610065891634,2.9241,39163.0,39154.0,0.0003369]
[1610065891835,0.09047,39171.0,39154.0,0.0003369]
[1610065892436,0.13632608,39155.0,39154.0,0.0003369]
[1610065893737,0.13632608,39155.0,39154.0,0.03166585]
[1610065895338,0.60472608,39155.0,39154.0,0.03166585]
[1610065895541,0.60472608,39155.0,39154.0,0.03132894]
[1610065895739,0.72756608,39155.0,39145.0,0.0316713]
[1610065895939,0.72756608,39155.0,39119.0,3.5214]
[1610065895940,0.72756608,39155.0,39154.0,0.03167426]
[1610065896138,0.72756608,39155.0,39146.0,0.03167387]
[1610065896339,0.72756608,39155.0,39154.0,0.03134012]
[1610065896539,0.72756608,39155.0,39154.0,0.03167716]
[1610065896739,0.72756608,39155.0,39132.0,0.13632608]
[1610065896940,0.72756608,39155.0,39154.0,0.03168233]
[1610065897139,0.72756608,39155.0,39154.0,0.03134524]
[1610065897339,0.72756608,39155.0,39133.0,0.03168277]
[1610065897540,0.72756608,39155.0,39154.0,0.03168281]
[1610065897741,0.72756608,39155.0,39134.0,0.0316832]
[1610065897940,0.72756608,39155.0,39154.0,0.03168383]
[1610065898342,0.72756608,39155.0,39133.0,0.03168371]
[1610065898540,0.72756608,39155.0,39154.0,0.03168288]
[1610065898541,0.59124,39155.0,39154.0,0.03168288]
[1610065898741,0.59124,39155.0,39137.0,0.13632608]
[1610065898941,0.12284,39155.0,39137.0,0.13632608]
[1610065899141,0.12284,39155.0,39138.0,0.03168299]
[1610065899342,0.6119,39152.0,39138.0,0.03168299]
[1610065899544,0.12284,39155.0,39138.0,0.03168299]
[1610065900346,0.10707,39163.0,39138.0,0.13769299]
[1610065900546,0.10707,39163.0,39162.0,0.13632608]
[1610065900743,0.09047,39171.0,39162.0,0.13632608]
[1610065900944,0.09887,39183.0,39162.0,0.16799934]
[1610065901143,0.09887,39183.0,39163.0,0.00033696]
[1610065901343,4.0392,39197.0,39163.0,0.03167008]
[1610065902544,4.0392,39197.0,39166.0,0.13632608]
[1610065902748,0.5686,39184.0,39163.0,0.03167008]
[1610065902947,0.69526,39184.0,39163.0,0.03167008]
[1610065903145,0.69526,39184.0,39167.0,0.03166685]
[1610065903346,0.69526,39184.0,39164.0,0.03166817]
[1610065903547,0.69526,39184.0,39168.0,0.03166764]
[1610065903746,0.69526,39184.0,39168.0,0.0313307]
[1610065903947,0.69526,39184.0,39165.0,0.03166693]
[1610065904147,0.69526,39184.0,39169.0,0.03166667]
[1610065904348,0.69526,39184.0,39166.0,0.03166525]
[1610065904550,0.69526,39184.0,39171.0,0.13632608]
[1610065904950,0.12666,39184.0,39172.0,0.03166367]
[1610065905349,0.2904,39201.0,39172.0,0.03166367]
[1610065906551,0.2904,39201.0,39192.0,0.13632608]
[1610065906752,0.2728,39223.0,39192.0,0.13632608]
[1610065906952,0.2728,39223.0,39193.0,0.0316534]
[1610065907353,0.2728,39223.0,39184.0,0.03165387]
[1610065907552,0.36358,39223.0,39194.0,0.03165514]
[1610065907752,0.36358,39223.0,39185.0,0.0316551]
[1610065908154,0.36358,39223.0,39184.0,0.03165745]
[1610065908353,0.36358,39223.0,39186.0,0.03165761]
[1610065908556,0.36358,39223.0,39185.0,0.03165735]
[1610065908557,0.13632608,39187.0,39185.0,0.03165735]
[1610065908953,0.12938,39199.0,39184.0,0.03165603]
[1610065909154,0.12938,39199.0,39186.0,0.03165521]
[1610065909353,0.12938,39199.0,39185.0,0.0316511]
[1610065909753,0.12938,39199.0,39184.0,0.03165046]
[1610065909953,0.37578,39223.0,39186.0,0.03164856]
[1610065910154,0.37578,39223.0,39185.0,0.03164755]
[1610065910555,0.37578,39223.0,39197.0,0.13632608]
[1610065910953,0.37578,39223.0,39198.0,0.03164805]
[1610065912153,0.37578,39223.0,39192.0,0.03165108]
[1610065912355,0.37578,39223.0,39199.0,0.03165363]
[1610065912555,0.13632608,39200.0,39193.0,0.03165374]
[1610065912954,0.13632608,39200.0,39186.0,0.06262398]
[1610065913155,0.13632608,39200.0,39194.0,0.03165563]
[1610065913356,0.13632608,39200.0,39187.0,0.03165543]
[1610065913756,0.13632608,39200.0,39195.0,0.03165536]
[1610065913957,0.13632608,39200.0,39188.0,0.03165647]
[1610065914156,0.13632608,39200.0,39196.0,0.03165651]
[1610065914456,0.13632608,39200.0,39189.0,0.03165598]
[1610065914658,0.13632608,39190.0,39182.0,0.13632608]
[1610065915058,0.13632608,39190.0,39183.0,0.03164848]
[1610065915762,0.13632608,39190.0,39184.0,0.03132112]
[1610065915962,0.13632608,39190.0,39166.0,0.15659352]
[1610065916361,0.13632608,39190.0,39170.0,0.0316513]
[1610065916561,0.10891,39198.0,39181.0,0.13632608]
[1610065917164,0.10891,39198.0,39182.0,0.03164574]
[1610065917861,0.10891,39198.0,39183.0,0.03164232]
[1610065918262,0.10891,39198.0,39182.0,0.03164242]
[1610065918464,0.10891,39198.0,39184.0,0.03164252]
[1610065918662,0.13632608,39192.0,39191.0,0.13632608]
[1610065918863,0.10891,39198.0,39191.0,0.13632608]
[1610065919066,0.12687,39207.0,39191.0,0.13632608]
[1610065919263,0.12687,39207.0,39192.0,0.03164176]
[1610065919463,0.5989,39222.0,39192.0,0.03164176]
[1610065919664,0.5989,39222.0,39192.0,0.08497]
[1610065919863,0.2794,39222.0,39193.0,0.03164154]
[1610065920065,0.2794,39222.0,39194.0,3.8454]
[1610065920666,0.2794,39222.0,39212.0,0.13632608]
[1610065920867,0.2921,39243.0,39212.0,0.13632608]
[1610065921068,0.2921,39243.0,39213.0,0.03163233]
[1610065922669,0.13632608,39214.0,39213.0,0.03163233]
[1610065923470,0.13632608,39214.0,39210.0,0.03162894]
[1610065923672,0.13632608,39214.0,39213.0,0.03162853]
[1610065924069,0.13632608,39214.0,39210.0,0.03162855]
[1610065924271,0.13632608,39214.0,39213.0,0.03162871]
[1610065924469,0.13632608,39214.0,39211.0,0.03162865]
[1610065924670,0.13632608,39214.0,39211.0,0.16795473]
[1610065924871,0.13632608,39214.0,39211.0,0.13632608]
[1610065925071,0.13632608,39214.0,39212.0,0.03162846]
[1610065926974,0.13632608,39214.0,39210.0,0.03163197]
[1610065927175,0.13632608,39214.0,39213.0,0.03163244]
[1610065927376,0.13632608,39214.0,39211.0,0.03163396]
[1610065927776,0.13632608,39214.0,39202.0,0.03163677]
[1610065927980,0.13632608,39214.0,39212.0,0.03163729]
[1610065928176,0.13632608,39214.0,39203.0,0.03163724]
[1610065928578,0.13632608,39204.0,39197.0,0.13632608]
[1610065928778,0.13632608,39204.0,39186.0,0.15651583]
[1610065928978,0.13632608,39204.0,39198.0,0.03163689]
[1610065929379,0.13632608,39204.0,39191.0,0.13736]
[1610065929579,0.13632608,39204.0,39199.0,0.03163723]
[1610065929779,0.13632608,39204.0,39192.0,0.03163608]
[1610065930180,0.09238,39214.0,39200.0,0.03163478]
[1610065930379,0.09238,39214.0,39193.0,0.03163393]
[1610065930579,0.09238,39214.0,39191.0,0.13736]
[1610065930580,0.09238,39214.0,39213.0,0.13632608]
[1610065930980,0.08763,39222.0,39213.0,0.16795645]
[1610065931181,0.08763,39222.0,39213.0,0.13632608]
[1610065931381,0.08763,39222.0,39214.0,0.03162863]
[1610065931581,0.2993,39235.0,39214.0,0.03162863]
[1610065932682,0.2993,39235.0,39223.0,0.13632608]
[1610065932881,0.1569,39248.0,39223.0,0.13632608]
[1610065933082,0.1569,39248.0,39224.0,0.03162518]
[1610065933682,0.1569,39248.0,39224.0,0.00032873]
[1610065933884,0.1569,39248.0,39225.0,0.03162435]
[1610065934083,0.1569,39248.0,39225.0,0.00032872]
[1610065934284,0.1569,39248.0,39226.0,0.03162352]
[1610065934585,0.13632608,39227.0,39220.0,0.13632608]
[1610065935185,0.13632608,39227.0,39221.0,0.03162336]
[1610065936788,0.13632608,39222.0,39221.0,0.03162336]
[1610065938089,0.11924,39238.0,39221.0,0.03162336]
[1610065938690,0.11924,39238.0,39226.0,0.13632608]
[1610065938892,0.28788255,39227.0,39221.0,0.12041336]
[1610065939091,0.28788255,39227.0,39221.0,0.08879]
[1610065939491,0.28788255,39227.0,39222.0,0.03162546]
[1610065940794,0.13632608,39223.0,39222.0,0.03162546]
[1610065941196,0.13632608,39223.0,39214.0,0.03162759]
[1610065941596,0.13632608,39223.0,39222.0,0.03162893]
[1610065941795,0.13632608,39223.0,39200.0,0.15648637]
[1610065941796,0.13632608,39223.0,39215.0,0.03162991]
[1610065941995,0.13632608,39223.0,39222.0,0.0316318]
[1610065942396,0.13632608,39223.0,39216.0,0.03163268]
[1610065942598,0.13632608,39223.0,39222.0,0.03163254]
[1610065942798,0.13632608,39223.0,39217.0,0.03163277]
[1610065943199,0.13632608,39223.0,39222.0,0.03163294]
[1610065943398,0.13632608,39223.0,39218.0,0.0316335]
[1610065943598,0.13632608,39223.0,39222.0,0.03163368]
[1610065944002,0.13632608,39223.0,39219.0,0.0316335]
[1610065944199,0.13632608,39223.0,39222.0,0.03163335]
[1610065944399,0.13632608,39223.0,39220.0,0.0316331]
[1610065944598,0.13632608,39223.0,39222.0,0.00032881]
[1610065944802,0.13632608,39223.0,39222.0,0.03163292]
[1610065945000,0.13632608,39223.0,39212.0,0.18815041]
[1610065945202,0.13632608,39223.0,39222.0,0.03162915]
[1610065945401,0.13632608,39223.0,39213.0,0.03162849]
[1610065945802,0.13632608,39223.0,39212.0,0.18814882]
[1610065946003,0.13632608,39223.0,39214.0,0.03162696]
[1610065946205,0.13632608,39223.0,39213.0,0.03162645]
[1610065946604,0.13632608,39223.0,39212.0,0.18814666]
[1610065946803,0.13632608,39223.0,39222.0,0.13632608]
[1610065947003,0.28788255,39227.0,39222.0,0.13632608]
[1610065947404,0.28788255,39227.0,39223.0,0.031623]
[1610065948707,0.13632608,39226.0,39223.0,0.031623]
[1610065950006,0.28788255,39227.0,39223.0,0.031623]
[1610065950206,0.28788255,39227.0,39225.0,2.9352]
[1610065950407,0.10218255,39227.0,39225.0,2.9352]
[1610065950808,0.10218255,39227.0,39226.0,0.32436862]
[1610065951207,0.1569,39271.0,39226.0,0.32436862]
[1610065951608,0.1569,39271.0,39227.0,0.03160964]
[1610065951811,0.2915,39275.0,39240.0,4.1725]
[1610065952008,0.2915,39275.0,39240.0,4.27131]
[1610065952409,0.2915,39275.0,39241.0,0.18799433]
[1610065952809,0.2915,39275.0,39255.0,0.13632608]
[1610065953009,0.2915,39275.0,39255.0,0.25340608]
[1610065953210,0.2915,39275.0,39256.0,0.0316064]
[1610065954113,0.2915,39275.0,39256.0,0.4560064]
[1610065954315,0.3195,39293.0,39256.0,0.4560064]
[1610065954515,0.3195,39293.0,39257.0,0.03160483]
[1610065954715,0.2999,39292.0,39264.0,3.7331]
[1610065954915,0.2999,39292.0,39272.0,0.13632608]
[1610065955116,0.2999,39292.0,39274.0,0.514]
[1610065955515,0.2999,39292.0,39275.0,0.03159675]
[1610065956115,0.0768,39291.0,39275.0,0.03159675]
[1610065956315,0.21325,39291.0,39275.0,0.03159675]
[1610065956916,0.13632608,39276.0,39275.0,0.03159675]
[1610065958118,0.21272608,39276.0,39275.0,0.03159675]
[1610065958318,0.21272608,39276.0,39275.0,0.09413457]
[1610065958518,0.21272608,39276.0,39275.0,0.03159675]
[1610065958719,0.21272608,39276.0,39275.0,0.09413441]
[1610065959120,0.13632608,39276.0,39275.0,0.03159675]
[1610065959320,0.13632608,39276.0,39275.0,0.09413334]
[1610065959521,0.13632608,39276.0,39275.0,0.03159675]
[1610065959719,0.13632608,39276.0,39275.0,0.0941321]
[1610065960118,0.21302608,39276.0,39275.0,0.03159675]
[1610065960320,0.21302608,39276.0,39275.0,0.09413005]
[1610065960521,0.21302608,39276.0,39275.0,0.03159675]
[1610065960919,0.21302608,39276.0,39275.0,0.23045412]
[1610065961120,0.13632608,39276.0,39275.0,0.16792283]
[1610065961319,0.13632608,39276.0,39275.0,0.23045373]
[1610065963222,0.13645,39291.0,39275.0,0.23045373]
[1610065963423,0.2867,39310.0,39275.0,0.23045373]
[1610065963723,0.2867,39310.0,39276.0,0.03159053]
[1610065964824,0.13632608,39283.0,39279.0,0.13632608]
[1610065965324,0.13632608,39283.0,39280.0,0.03158917]
[1610065967126,0.12811,39291.0,39280.0,0.03158917]
[1610065967529,0.12811,39291.0,39285.0,3.2183]
[1610065967728,0.2867,39310.0,39285.0,3.2183]
[1610065968128,0.2867,39310.0,39286.0,0.09409679]
[1610065968329,0.16436164,39329.0,39286.0,0.09409679]
[1610065968529,0.1569,39329.0,39300.0,3.7653]
[1610065968731,0.00745738,39330.0,39300.0,3.7653]
[1610065968930,0.2855,39339.0,39317.0,0.13632608]
[1610065968931,0.13632608,39318.0,39317.0,0.13632608]
[1610065969131,0.24213608,39318.0,39317.0,0.13632608]
[1610065969330,0.24213608,39318.0,39317.0,3.16405434]
[1610065969534,0.10581,39318.0,39317.0,3.16405434]
[1610065969734,0.10581,39318.0,39317.0,3.19529633]
[1610065970231,0.12556,39337.0,39317.0,3.19529633]
[1610065970431,0.12556,39337.0,39317.0,0.27190434]
[1610065970633,0.12556,39337.0,39324.0,2.956]
[1610065970834,0.13632608,39325.0,39318.0,0.00032813]
[1610065971836,0.13632608,39325.0,39304.0,0.03156574]
[1610065972034,0.13632608,39325.0,39319.0,0.00032813]
[1610065972235,0.13632608,39325.0,39304.0,0.03123761]
[1610065972236,0.13632608,39325.0,39306.0,0.12991]
[1610065972437,0.13632608,39325.0,39314.0,0.10773]
[1610065972637,0.13632608,39325.0,39320.0,0.00032813]
[1610065972836,0.13632608,39321.0,39315.0,0.03156387]
[1610065973036,0.13632608,39321.0,39315.0,0.03123574]
[1610065973336,0.13632608,39321.0,39316.0,0.00032814]
[1610065973537,0.13632608,39321.0,39315.0,0.03156388]
[1610065973937,0.13325,39329.0,39319.0,4.1058]
[1610065974338,0.13325,39329.0,39320.0,0.03156182]
[1610065974739,0.12556,39337.0,39320.0,0.03156182]
[1610065974940,0.13632608,39333.0,39328.0,0.13632608]
[1610065975440,0.13632608,39333.0,39329.0,0.00032809]
[1610065975641,0.13632608,39333.0,39319.0,3.83688058]
[1610065975942,0.13632608,39333.0,39320.0,0.03156208]
[1610065976142,0.0756,39332.0,39320.0,0.03156208]
[1610065976844,0.13632608,39321.0,39320.0,0.03156208]
[1610065977644,0.13632608,39321.0,39315.0,3.438]
[1610065977847,0.13632608,39321.0,39320.0,0.03156765]
[1610065978044,0.21152608,39321.0,39316.0,0.03156553]
[1610065978545,0.10378,39325.0,39316.0,0.03156553]
[1610065978946,0.10378,39325.0,39324.0,0.13632608]
[1610065979347,0.10378,39325.0,39324.0,0.13665668]
[1610065979546,0.13632608,39328.0,39324.0,0.16788889]
[1610065979746,0.0757,39327.0,39324.0,0.16788889]
[1610065979951,0.0757,39327.0,39325.0,0.031561]
[1610065982452,0.13632608,39333.0,39325.0,0.031561]
[1610065982852,0.13632608,39333.0,39332.0,0.13632608]
[1610065983353,0.13632608,39333.0,39332.0,0.16788314]
[1610065984754,0.13632608,39333.0,39332.0,0.03155706]
[1610065985353,0.40650444,39332.0,39325.0,0.13632608]
[1610065985754,0.40650444,39332.0,39326.0,0.03156018]
[1610065986856,0.40650444,39332.0,39331.0,0.13632608]
[1610065987356,0.40650444,39332.0,39331.0,0.16788379]
[1610065988659,0.48270444,39332.0,39331.0,0.16788379]
[1610065988858,0.40650444,39332.0,39331.0,0.16788379]
[1610065989058,0.54283052,39332.0,39331.0,0.16788379]
[1610065989859,0.62003052,39332.0,39331.0,0.16788379]
[1610065990261,0.62003052,39332.0,39331.0,0.16788382]
[1610065990459,0.62003052,39332.0,39331.0,0.13665665]
[1610065990661,0.62003052,39332.0,39331.0,0.16788624]
[1610065990860,0.54283052,39332.0,39331.0,0.16788624]
[1610065992765,0.54283052,39332.0,39331.0,0.03156016]
[1610065992963,0.61913052,39332.0,39331.0,0.03156016]
[1610065993164,0.61913052,39332.0,39326.0,0.13632608]
[1610065993465,0.61913052,39332.0,39327.0,0.03156048]
[1610065993865,0.54283052,39332.0,39327.0,0.03156048]
[1610065994667,0.54283052,39332.0,39324.0,0.03156131]
[1610065994867,0.54283052,39332.0,39328.0,0.03156137]
[1610065995068,0.54283052,39332.0,39325.0,0.03156166]
[1610065995268,0.0772,39331.0,39325.0,0.03156166]
[1610065995467,0.0772,39331.0,39329.0,0.03156078]
[1610065995669,0.54283052,39332.0,39326.0,0.03156155]
[1610065995869,0.54283052,39332.0,39330.0,0.03156155]
[1610065996071,0.54283052,39332.0,39327.0,0.03156163]
[1610065996469,0.54283052,39332.0,39324.0,0.03156189]
[1610065996671,0.54283052,39332.0,39328.0,0.03156304]
[1610065996870,0.54283052,39332.0,39325.0,0.03156337]
[1610065997069,0.13632608,39326.0,39325.0,0.03156337]
[1610065997271,0.21182608,39326.0,39324.0,0.03156337]
[1610065997469,0.21182608,39326.0,39323.0,0.08675]
[1610065997470,0.21182608,39326.0,39325.0,0.03156362]
[1610065997772,0.13632608,39326.0,39325.0,0.03156362]
[1610065997970,0.21232608,39326.0,39324.0,0.03156389]
[1610065998170,0.13632608,39326.0,39324.0,0.03156389]
[1610065998370,0.13632608,39326.0,39324.0,0.03156382]
[1610065998570,0.13632608,39326.0,39323.0,0.08675]
[1610065998771,0.0766,39325.0,39316.0,0.29247822]
[1610065998972,0.13632608,39317.0,39316.0,0.15615214]
[1610065999373,0.13632608,39317.0,39316.0,0.03156744]
[1610066000172,0.21152608,39317.0,39310.0,0.03156767]
[1610066000374,0.13632608,39317.0,39316.0,0.03156914]
[1610066000672,0.13632608,39317.0,39311.0,0.03156869]
[1610066000872,0.13632608,39317.0,39316.0,0.03156945]
[1610066001274,0.13632608,39317.0,39312.0,0.0315701]
[1610066001473,0.13632608,39317.0,39316.0,0.03157035]
[1610066001674,0.13632608,39317.0,39313.0,0.03157018]
[1610066001974,0.13632608,39317.0,39316.0,0.03156943]
[1610066002177,0.11955,39321.0,39314.0,0.0315675]
[1610066002576,0.10373,39329.0,39310.0,0.0315658]
[1610066002775,0.10373,39329.0,39315.0,0.03156527]
[1610066002978,4.24330444,39332.0,39315.0,0.08515]
[1610066003176,4.24330444,39332.0,39328.0,0.13632608]
[1610066003577,4.24330444,39332.0,39329.0,0.03156114]
[1610066004077,4.24330444,39332.0,39316.0,0.03156206]
[1610066004480,4.24330444,39332.0,39330.0,0.03156277]
[1610066004680,4.24330444,39332.0,39315.0,0.08515]
[1610066004681,4.24330444,39332.0,39317.0,0.03156295]
[1610066004880,4.24330444,39332.0,39331.0,0.03156354]
[1610066005080,4.37963052,39332.0,39331.0,0.03156354]
[1610066005279,4.37963052,39332.0,39318.0,0.03156364]
[1610066005487,4.37963052,39332.0,39331.0,0.03156402]
[1610066005682,4.37963052,39332.0,39316.0,0.13632608]
[1610066005683,4.37963052,39332.0,39319.0,0.03156174]
[1610066005879,4.37963052,39332.0,39331.0,0.03156135]
[1610066006179,4.37963052,39332.0,39317.0,0.03156068]
[1610066006478,4.37963052,39332.0,39331.0,0.0315595]
[1610066006682,4.37963052,39332.0,39318.0,0.03155928]
[1610066006980,4.37963052,39332.0,39317.0,0.03155915]
[1610066007181,4.24330444,39332.0,39329.0,0.13632608]
[1610066007381,0.40650444,39332.0,39329.0,0.13632608]
[1610066007580,0.40650444,39332.0,39330.0,0.03155862]
[1610066008782,0.077,39331.0,39330.0,0.03155862]
[1610066009383,0.54283052,39332.0,39330.0,0.03155862]
[1610066009583,0.40650444,39332.0,39330.0,0.03155862]
[1610066010586,0.40650444,39332.0,39331.0,3.3811]
[1610066010985,0.40650444,39332.0,39331.0,3.56873683]
[1610066012287,0.48350444,39332.0,39331.0,3.56873683]
[1610066015493,0.48350444,39332.0,39331.0,0.18763683]
[1610066015895,0.40650444,39332.0,39331.0,0.18763683]
[1610066016095,0.40650444,39332.0,39330.0,0.03154651]
[1610066016295,0.40650444,39332.0,39331.0,0.03154694]
[1610066016897,0.40650444,39332.0,39330.0,0.03154518]
[1610066016898,0.48370444,39332.0,39330.0,0.03154518]
[1610066017097,0.48370444,39332.0,39331.0,0.03154492]
[1610066017597,0.48370444,39332.0,39330.0,0.0315463]
[1610066017998,0.48370444,39332.0,39331.0,0.03154609]
[1610066018398,0.48370444,39332.0,39330.0,0.03154632]
[1610066018798,0.48370444,39332.0,39331.0,0.03154652]
[1610066018998,0.40650444,39332.0,39331.0,0.03154652]
[1610066019198,0.40650444,39332.0,39330.0,0.03154594]
[1610066019598,0.40650444,39332.0,39329.0,0.13632608]
[1610066019599,0.40650444,39332.0,39331.0,0.03154602]
[1610066019998,0.40650444,39332.0,39330.0,0.03154635]
[1610066020199,0.40650444,39332.0,39330.0,0.55544635]
[1610066020398,0.40650444,39332.0,39331.0,0.03154673]
[1610066021000,0.1703757,39332.0,39331.0,0.03154673]
[1610066022402,0.0947757,39332.0,39331.0,0.03154673]
[1610066023305,0.1708757,39332.0,39331.0,0.03154673]
[1610066025106,0.0947757,39332.0,39331.0,0.03154673]
[1610066025307,7.3668,39370.0,39331.0,0.03154673]
[1610066026207,0.0752,39350.0,39331.0,0.03154673]
[1610066027209,0.0752,39350.0,39349.0,0.13632608]
[1610066027409,0.0752,39350.0,39349.0,0.23874608]
[1610066027812,0.0752,39350.0,39349.0,0.27028809]
[1610066028210,0.01517407,39393.0,39349.0,0.27028809]
[1610066028412,4.2402,39387.0,39349.0,0.27028809]
[1610066028611,0.2737,39387.0,39349.0,0.27028809]
[1610066028811,0.2737,39387.0,39350.0,0.03154153]
[1610066029010,0.2737,39387.0,39352.0,3.7276]
[1610066029211,0.2737,39387.0,39369.0,0.13632608]
[1610066029412,0.0769,39370.0,39369.0,0.13632608]
[1610066029812,0.2737,39387.0,39369.0,0.03153805]
[1610066030312,0.2737,39387.0,39353.0,0.18759291]
[1610066030712,0.2737,39387.0,39370.0,0.03153873]
[1610066030914,0.2737,39387.0,39354.0,0.03153884]
[1610066031112,0.13632608,39377.0,39370.0,0.16786496]
[1610066031513,0.13632608,39377.0,39370.0,0.13632608]
[1610066031712,0.13632608,39377.0,39371.0,0.03153848]
[1610066034519,0.13632608,39377.0,39370.0,0.13632608]
[1610066034719,0.13632608,39377.0,39372.0,0.03153679]
[1610066034920,0.13632608,39377.0,39371.0,0.03153604]
[1610066035120,0.13632608,39377.0,39373.0,0.03153596]
[1610066035520,0.13632608,39377.0,39372.0,0.03153444]
[1610066035721,0.13632608,39377.0,39374.0,0.03153446]
[1610066035921,0.13632608,39377.0,39373.0,0.03153461]
[1610066036122,0.13632608,39377.0,39375.0,0.03120422]
[1610066036322,0.13632608,39377.0,39375.0,0.0315371]
[1610066036521,0.13632608,39377.0,39371.0,0.0315375]
[1610066036723,0.13632608,39377.0,39376.0,0.0315379]
[1610066036923,0.13632608,39377.0,39376.0,0.00033288]
[1610066037124,0.13632608,39377.0,39372.0,0.03153709]
[1610066037323,0.12357,39379.0,39376.0,0.00033288]
[1610066037524,0.2737,39387.0,39373.0,0.00033288]
[1610066037823,0.2737,39387.0,39377.0,0.00033288]
[1610066038025,0.2737,39387.0,39374.0,0.00033288]
[1610066038224,0.3724,39387.0,39374.0,0.00033288]
[1610066038424,0.3724,39387.0,39378.0,0.00033288]
[1610066038627,0.3724,39387.0,39375.0,0.00033288]
[1610066038825,0.3724,39387.0,39379.0,0.00033288]
[1610066039224,0.13632608,39380.0,39376.0,0.00033288]
[1610066039425,0.13632608,39380.0,39369.0,0.13632608]
[1610066039625,0.13632608,39380.0,39377.0,0.00033288]
[1610066040026,0.13632608,39380.0,39370.0,0.03153729]
[1610066040228,0.13632608,39380.0,39378.0,0.00033288]
[1610066040427,0.13632608,39380.0,39371.0,0.03153704]
[1610066040828,0.13632608,39380.0,39379.0,0.00033288]
[1610066041028,0.13632608,39380.0,39372.0,0.03153712]
[1610066041228,0.13632608,39380.0,39369.0,0.13632608]
[1610066041229,0.3724,39387.0,39379.0,0.00033288]
[1610066041629,0.3724,39387.0,39373.0,0.03153762]
[1610066041830,0.3724,39387.0,39380.0,0.00033288]
[1610066042029,0.4582,39385.0,39374.0,0.0315344]
[1610066042430,0.4582,39385.0,39366.0,0.13632608]
[1610066042431,0.4582,39385.0,39381.0,0.00033285]
[1610066042631,0.4582,39385.0,39380.0,0.03120071]
[1610066042632,0.4582,39385.0,39375.0,0.03153275]
[1610066042829,0.4582,39385.0,39382.0,0.00033285]
[1610066043230,0.13632608,39383.0,39376.0,0.03153508]
[1610066043430,0.13632608,39383.0,39382.0,0.03120273]
[1610066043629,0.13632608,39383.0,39377.0,0.03153578]
[1610066044029,0.13632608,39383.0,39359.0,0.1560376]
[1610066044030,0.13632608,39383.0,39382.0,0.03153629]
[1610066044232,0.13632608,39383.0,39378.0,0.03153763]
[1610066044429,0.13632608,39383.0,39382.0,0.03153786]
[1610066044833,0.13632608,39383.0,39379.0,0.03153786]
[1610066045034,0.13632608,39383.0,39382.0,0.03153768]
[1610066045235,0.13632608,39383.0,39380.0,0.03153731]
[1610066045635,0.13632608,39383.0,39382.0,0.03120484]
[1610066045836,0.13632608,39383.0,39381.0,0.03153852]
[1610066046035,0.13632608,39383.0,39382.0,0.03120577]
[1610066046235,0.13632608,39383.0,39382.0,0.03153866]
[1610066046635,0.13632608,39383.0,39359.0,0.18757553]
[1610066046836,0.13632608,39383.0,39382.0,0.03153742]
[1610066047035,0.13632608,39383.0,39360.0,0.03153765]
[1610066047235,0.13632608,39361.0,39360.0,0.03153765]
[1610066047435,0.13632608,39361.0,39359.0,0.18757576]
[1610066047635,0.13632608,39361.0,39359.0,0.1875758]
[1610066047835,0.13632608,39361.0,39359.0,0.1560376]
[1610066048436,0.13632608,39361.0,39359.0,0.15637048]
[1610066049040,0.13632608,39361.0,39355.0,0.0315367]
[1610066049239,0.13632608,39361.0,39360.0,0.16786145]
[1610066049438,0.13632608,39361.0,39360.0,0.13632608]
[1610066049740,0.13632608,39361.0,39360.0,0.1678614]
[1610066063761,0.13233,39373.0,39360.0,0.1678614]
[1610066063964,0.3724,39387.0,39361.0,4.256]
[1610066064261,0.3724,39387.0,39362.0,0.18750447]
[1610066065463,0.3724,39387.0,39370.0,0.13632608]
[1610066065667,3.9013,39387.0,39370.0,0.13632608]
[1610066065865,3.9013,39387.0,39371.0,0.03152903]
[1610066066066,0.3724,39387.0,39371.0,0.03152903]
[1610066066265,3.7431,39387.0,39371.0,0.03152903]
[1610066066466,3.7431,39387.0,39358.0,0.03152943]
[1610066066667,3.7431,39387.0,39372.0,0.03152984]
[1610066066866,3.7431,39387.0,39372.0,0.03119703]
[1610066067067,3.7431,39387.0,39358.0,0.03152965]
[1610066067267,3.7431,39387.0,39373.0,0.03152893]
[1610066067471,0.13632608,39375.0,39369.0,0.13632608]
[1610066067667,0.13632608,39375.0,39374.0,0.03152835]
[1610066068068,0.13632608,39375.0,39370.0,0.03152889]
[1610066068268,0.13632608,39375.0,39374.0,0.03152912]
[1610066068469,0.13632608,39375.0,39371.0,0.03152906]
[1610066068871,0.13632608,39375.0,39370.0,0.03152771]
[1610066069070,0.13632608,39375.0,39372.0,0.03152803]
[1610066069270,0.13632608,39375.0,39371.0,0.03152839]
[1610066069671,0.13632608,39375.0,39370.0,0.03152884]
[1610066069871,0.13632608,39375.0,39372.0,0.03152886]
[1610066070073,0.13632608,39375.0,39371.0,0.03152861]
[1610066070372,0.13632608,39375.0,39366.0,0.03152853]
[1610066070571,0.13632608,39375.0,39372.0,0.0315286]
[1610066070971,0.13632608,39375.0,39365.0,0.13632608]
[1610066070972,0.13632608,39375.0,39366.0,0.03152913]
[1610066071172,0.13632608,39375.0,39373.0,0.03152958]
[1610066071374,0.13632608,39375.0,39373.0,0.00033279]
[1610066071572,0.13632608,39375.0,39367.0,0.03152998]
[1610066071773,0.13632608,39375.0,39374.0,0.00033281]
[1610066071972,0.13632608,39375.0,39368.0,0.03152902]
[1610066072273,0.13632608,39375.0,39374.0,0.00033281]
[1610066072472,0.13632608,39375.0,39369.0,0.03152873]
[1610066072872,0.13632608,39375.0,39374.0,0.00033279]
[1610066073072,0.13632608,39375.0,39370.0,0.03152896]
[1610066073273,0.13632608,39375.0,39374.0,0.00033279]